bitfinex/quotes_ETHUSD_20220310
["timestamp","ask_amount","ask_price","bid_price","bid_amount"]
[1646938115430,1.3274073,2602.9,2602.7,0.00374089]
[1646938115630,4.8274073,2602.9,2602.7,0.00374089]
[1646938116032,4.8274073,2602.9,2602.2,0.08313006]
[1646938116230,4.8274073,2602.9,2602.7,0.00374089]
[1646938116231,5.52277042,2602.9,2602.7,0.00374089]
[1646938116673,2.02277042,2602.9,2602.7,0.00374089]
[1646938117276,2.02277042,2602.9,2602.2,1.04416006]
[1646938117277,3.5,2602.8,2602.4,0.08851726]
[1646938117476,4.1858,2602.8,2602.7,0.00364692]
[1646938117678,4.88116312,2602.8,2602.7,0.00364692]
[1646938117875,16.65116312,2602.8,2602.7,0.00364692]
[1646938118076,4.1858,2602.8,2602.7,0.00364692]
[1646938118478,4.1858,2602.8,2602.0,0.0740218]
[1646938118680,0.89549645,2602.4,2602.0,1.03779265]
[1646938118985,4.88116312,2602.8,2602.0,0.0740218]
[1646938119187,0.96133,2602.4,2602.0,0.0740218]
[1646938119384,3.5,2602.3,2601.7,0.07424376]
[1646938119584,0.3858,2602.1,2601.6,0.192]
[1646938119788,0.3858,2601.9,2601.6,0.192]
[1646938120186,1.20720875,2601.8,2601.6,0.192]
[1646938121030,1.20720875,2601.8,2601.6,0.1956639]
[1646938121927,1.20720875,2601.8,2601.6,0.192]
[1646938122127,1.20720875,2601.8,2601.7,0.86441758]
[1646938122330,1.91558025,2601.8,2601.7,0.86441758]
[1646938123930,0.7083715,2601.8,2601.7,0.86441758]
[1646938124185,3.5,2602.3,2601.7,0.86441758]
[1646938124382,0.70774376,2602.2,2601.7,0.86441758]
[1646938124581,0.70774376,2602.2,2601.8,0.0828323]
[1646938124782,0.70774376,2602.2,2601.9,0.86441758]
[1646938124983,1.83960423,2602.2,2601.9,0.86441758]
[1646938125182,0.70774376,2602.1,2601.9,0.86441758]
[1646938125983,0.70774376,2602.1,2601.9,0.86816648]
[1646938126183,0.70774376,2602.1,2602.0,0.86441758]
[1646938126882,0.70774376,2602.4,2602.0,0.86441758]
[1646938127083,0.70774376,2602.4,2602.1,0.95001223]
[1646938127284,0.70774376,2602.4,2602.2,0.86441758]
[1646938128227,1.10732082,2602.3,2602.2,0.86806071]
[1646938128427,1.81506458,2602.3,2602.2,0.86806071]
[1646938129232,1.10732082,2602.3,2602.2,0.86441758]
[1646938129430,1.81493554,2602.3,2602.2,0.86441758]
[1646938129630,2.06870082,2602.3,2602.2,0.86441758]
[1646938130231,2.77632626,2602.3,2602.2,0.86441758]
[1646938130431,0.96138,2602.3,2602.2,0.86441758]
[1646938130630,1.66784026,2602.3,2602.2,0.86441758]
[1646938130831,0.96023238,2602.3,2602.2,0.86441758]
[1646938131032,1.66787381,2602.3,2602.2,0.86441758]
[1646938131232,0.96023238,2602.3,2602.2,0.86441758]
[1646938131433,0.70762392,2602.3,2602.2,0.86441758]
[1646938131676,0.70762679,2602.3,2602.2,0.86441758]
[1646938131878,4.46132,2602.5,2602.2,0.86441758]
[1646938131879,0.70762278,2602.4,2602.2,0.86441758]
[1646938133178,1.20742435,2602.3,2602.2,0.86807616]
[1646938133377,1.91504713,2602.3,2602.2,0.86807616]
[1646938133678,0.70762278,2602.3,2602.2,0.86807616]
[1646938134077,0.70762278,2602.4,2602.2,0.86441758]
[1646938134281,0.70762278,2602.3,2602.1,0.0036586]
[1646938134487,0.70762278,2602.2,2602.1,0.0036586]
[1646938134682,1.15549982,2602.4,2602.1,0.0036586]
[1646938134882,0.70767831,2602.3,2602.1,0.0036586]
[1646938135334,0.70767831,2602.3,2601.9,0.86275391]
[1646938135523,4.59347831,2602.3,2602.1,0.00365634]
[1646938135725,4.20767831,2602.2,2602.1,0.00365634]
[1646938136224,4.20767831,2602.2,2602.1,0.86641025]
[1646938136424,4.20767831,2602.2,2602.1,0.86275391]
[1646938136624,4.20767831,2602.2,2602.0,0.00365638]
[1646938136826,0.70773599,2602.1,2602.0,0.00365638]
[1646938137030,3.5,2602.2,2602.0,0.00365638]
[1646938137227,0.70773449,2602.1,2602.0,0.00365638]
[1646938137627,0.96198295,2602.0,2601.7,0.86275391]
[1646938137828,1.61097662,2602.1,2602.0,0.10238941]
[1646938138028,1.9509018,2602.1,2602.0,0.10238941]
[1646938138229,0.72572518,2602.1,2602.0,0.96514332]
[1646938138829,0.72572518,2602.1,2602.0,0.96148691]
[1646938139279,0.72572518,2602.1,2602.0,1.90565778]
[1646938139478,0.04341967,2602.5,2602.0,1.90565778]
[1646938139681,0.72570612,2602.4,2602.1,0.86275391]
[1646938139877,0.72570612,2602.4,2602.2,0.86275391]
[1646938140086,3.5,2602.6,2602.3,0.86275391]
[1646938140284,1.02572057,2602.5,2602.1,0.00365962]
[1646938140481,1.02572057,2602.5,2602.1,0.8484877]
[1646938140482,0.72572057,2602.4,2602.1,0.8484877]
[1646938141281,0.72572057,2602.4,2602.1,0.84482808]
[1646938141479,0.72572057,2602.4,2602.1,0.8484877]
[1646938142579,0.72572057,2602.4,2602.1,0.84482808]
[1646938142830,0.72572057,2602.4,2602.1,0.84848427]
[1646938143730,0.72572057,2602.4,2602.1,0.84482808]
[1646938143932,0.72572057,2602.4,2602.1,0.00365619]
[1646938143933,15.6558,2602.3,2602.1,0.00365619]
[1646938144136,15.99572057,2602.2,2602.1,0.00365619]
[1646938144942,5.17290407,2602.2,2602.0,0.098733]
[1646938145137,0.72572057,2602.1,2602.0,0.10238924]
[1646938145538,0.72572057,2602.1,2602.0,0.94665789]
[1646938145937,0.72572057,2602.1,2602.0,0.94300165]
[1646938146786,3.5087,2602.7,2602.1,0.07673328]
[1646938146985,0.72562822,2602.6,2602.2,0.84426865]
[1646938147185,0.74576393,2602.9,2602.2,0.84426865]
[1646938147186,0.72562822,2602.5,2602.2,0.84426865]
[1646938147384,0.72562822,2602.4,2602.2,0.84426865]
[1646938147588,1.97587248,2602.9,2602.4,1.18578224]
[1646938147786,0.72552949,2602.8,2602.4,1.18578224]
[1646938148186,0.72552949,2602.8,2602.4,1.27291179]
[1646938148387,0.72552949,2602.7,2602.4,1.27291179]
[1646938148586,0.72552949,2602.6,2602.4,1.27291179]
[1646938148786,0.69536312,2602.9,2602.5,0.00365653]
[1646938149393,1.22148187,2602.8,2602.5,0.00365653]
[1646938149593,0.72561688,2602.7,2602.4,1.27291179]
[1646938149993,0.69536312,2602.9,2602.6,0.00365642]
[1646938150532,0.72564306,2602.8,2602.6,0.00365642]
[1646938150730,0.72564306,2602.8,2602.6,0.07355568]
[1646938150933,0.72564306,2602.7,2602.6,0.06989926]
[1646938151130,2.61368152,2603.2,2602.6,0.91721821]
[1646938151331,1.42100618,2603.1,2602.7,0.07942848]
[1646938151530,1.42100618,2603.1,2602.6,0.0036564]
[1646938151931,1.42100618,2603.1,2602.6,0.92520664]
[1646938152130,1.42100618,2603.1,2602.6,0.07782162]
[1646938152332,1.42100618,2603.1,2602.7,0.00365643]
[1646938152532,2.38208618,2603.1,2602.7,0.00365643]
[1646938152733,0.72564306,2603.0,2602.7,0.00365643]
[1646938153132,0.72564306,2603.0,2602.8,0.87539514]
[1646938153333,0.72564306,2603.0,2602.9,0.08651406]
[1646938153932,0.69536312,2603.2,2602.9,0.08651406]
[1646938154180,0.72564306,2603.1,2602.9,0.08651406]
[1646938154382,0.72564306,2603.0,2602.9,0.08651406]
[1646938154786,0.72564306,2603.2,2602.9,0.08651406]
[1646938154986,0.72564306,2603.1,2602.9,0.08651406]
[1646938155182,0.69536312,2603.5,2603.1,0.08960874]
[1646938155589,0.73064986,2603.6,2603.3,1.19798737]
[1646938155590,0.72564643,2603.4,2603.3,1.19798737]
[1646938155985,0.00365558,2603.6,2603.4,0.07316499]
[1646938156184,0.00365558,2603.6,2602.9,0.08929449]
[1646938156185,0.6990187,2603.6,2602.9,0.08929449]
[1646938156384,1.6599187,2603.6,2603.0,0.84255665]
[1646938156585,0.72540127,2603.5,2603.1,0.07211844]
[1646938156786,14.82867233,2604.0,2603.1,0.07211844]
[1646938156787,0.72540127,2603.4,2603.2,0.84247072]
[1646938156986,0.69536312,2603.7,2603.3,0.08131162]
[1646938157185,1.03080995,2603.6,2603.1,0.96207831]
[1646938157486,1.03080995,2603.6,2603.2,0.07266725]
[1646938157487,0.72541546,2603.5,2603.2,0.07266725]
[1646938157929,0.72541546,2603.5,2602.9,0.08469348]
[1646938157930,1.42077858,2603.5,2602.9,0.08469348]
[1646938158132,0.72541546,2603.4,2602.9,0.08469348]
[1646938158330,0.72541546,2603.3,2602.9,0.08469348]
[1646938158530,0.72541546,2603.2,2602.9,1.04556348]
[1646938158730,0.72541546,2603.1,2603.0,0.08463608]
[1646938159133,0.72541546,2603.1,2603.0,1.99712725]
[1646938159334,0.69536312,2603.7,2603.0,5.49712725]
[1646938159541,0.00241045,2603.6,2603.1,1.87877097]
[1646938159738,0.00241045,2603.6,2603.3,0.07303462]
[1646938159936,0.00241045,2603.6,2603.4,3.7298525]
[1646938160137,0.00241045,2603.6,2603.5,0.06943209]
[1646938160334,0.00241045,2603.6,2603.5,0.91823209]
[1646938160541,0.00134809,2604.3,2603.5,1.91320738]
[1646938160742,0.69671121,2604.5,2604.1,1.05343741]
[1646938160939,0.91443536,2604.6,2604.1,1.05343741]
[1646938160940,1.61114657,2604.6,2604.1,1.05343741]
[1646938161140,1.61114657,2604.6,2604.0,0.06878257]
[1646938161340,1.61114657,2604.6,2603.3,10.02997]
[1646938161341,0.69536312,2604.4,2603.6,0.07586775]
[1646938161580,0.69536312,2604.3,2603.6,0.07586775]
[1646938162180,1.06708779,2603.8,2603.6,0.07586775]
[1646938162381,1.06708779,2603.8,2603.4,0.07016608]
[1646938163179,0.00354008,2603.7,2603.4,0.07016608]
[1646938164182,1.06708779,2603.8,2603.4,0.07016608]
[1646938164384,0.00355253,2603.7,2603.4,0.9722441]
[1646938164587,0.00355253,2603.7,2603.5,0.07935255]
[1646938165440,1.26793218,2604.4,2603.5,0.07935255]
[1646938165441,1.9632953,2604.4,2603.5,0.07935255]
[1646938165640,0.0035525,2603.7,2603.5,0.07935255]
[1646938166540,0.0035525,2603.7,2602.8,2.326395]
[1646938166541,13.29385614,2603.9,2602.8,1.613395]
[1646938166740,0.05584148,2603.8,2602.8,0.07084147]
[1646938166940,0.0035525,2603.7,2602.8,0.07084147]
[1646938167141,1.19080091,2603.1,2602.8,0.07084147]
[1646938167641,1.19080091,2603.1,2602.6,0.58467447]
[1646938168041,1.19080091,2603.1,2602.7,0.00332906]
[1646938168841,1.19080091,2603.1,2602.6,1.54559447]
[1646938169282,1.19080091,2603.1,2602.7,0.00332901]
[1646938169482,0.04801751,2603.5,2602.7,0.00332901]
[1646938169683,0.04801751,2603.5,2602.7,1.92509661]
[1646938170084,0.04801751,2603.5,2602.7,1.9217676]
[1646938170283,0.00134809,2603.8,2602.9,0.46935233]
[1646938170486,0.00332803,2603.6,2603.1,2.00515997]
[1646938170684,0.00332803,2603.6,2603.4,0.07686923]
[1646938171283,0.00134809,2604.3,2603.4,0.07686923]
[1646938171482,1.1332,2604.4,2603.4,0.07686923]
[1646938171683,0.00335913,2603.6,2603.4,3.96266923]
[1646938171882,0.00335913,2603.6,2603.5,0.08678371]
[1646938172838,0.00335911,2603.7,2603.5,0.08678371]
[1646938173830,1.18874656,2604.0,2603.5,0.08678371]
[1646938174028,0.00335909,2603.7,2603.5,0.08678371]
[1646938174632,0.00335909,2603.7,2603.4,0.3858]
[1646938175033,1.18874656,2604.0,2603.3,0.46618938]
[1646938175233,0.00335442,2603.7,2603.3,0.46618938]
[1646938176137,0.00134809,2604.3,2603.6,0.92913016]
[1646938176336,8.4990334,2604.6,2603.8,0.9603882]
[1646938176337,0.00134809,2604.5,2603.8,0.9603882]
[1646938176585,0.01341584,2604.0,2603.9,1.3858]
[1646938176784,0.01341584,2604.0,2603.9,1.8488]
[1646938177184,0.01341584,2604.0,2603.9,5.3488]
[1646938177386,0.08474799,2604.7,2604.0,1.34598]
[1646938177685,0.01341502,2604.5,2604.1,1.4232]
[1646938177884,0.01341502,2604.5,2604.1,2.3833979]
[1646938178691,0.0833999,2604.7,2604.3,1.07715072]
[1646938178886,0.00335682,2604.4,2604.1,1.4232]
[1646938179087,0.00335682,2604.4,2604.1,3.3437419]
[1646938179289,0.00335682,2604.4,2604.1,4.3437419]
[1646938179492,0.00335682,2604.4,2604.2,0.96021]
[1646938179693,0.0833999,2604.7,2604.3,3.963]
[1646938180092,0.00335735,2604.4,2604.3,2.42311]
[1646938180338,0.0833999,2604.7,2604.4,0.00048616]
[1646938180531,0.0833999,2604.7,2604.5,1.38484414]
[1646938180730,0.0833999,2604.7,2604.4,0.00048616]
[1646938180930,0.66445575,2604.6,2604.4,0.00048616]
[1646938182528,0.66662847,2604.6,2604.4,0.00048616]
[1646938183432,0.66445575,2604.6,2604.4,0.00048616]
[1646938183631,0.66805914,2604.6,2604.4,0.00048616]
[1646938184281,0.00360339,2604.6,2604.4,0.00048616]
[1646938184482,1.22776825,2604.7,2604.4,0.00048616]
[1646938184683,0.00217131,2604.6,2604.4,0.00048616]
[1646938185783,0.0833999,2604.7,2604.4,0.00048616]
[1646938185983,0.00216061,2604.6,2604.4,0.00048616]
[1646938186982,0.0833999,2604.7,2604.4,0.00048616]
[1646938187187,0.00216061,2604.6,2604.4,0.00048616]
[1646938188130,0.0833999,2604.7,2604.4,0.00048616]
[1646938188529,0.00359379,2604.6,2604.4,0.00048616]
[1646938189333,0.1359259,2604.7,2604.4,0.00048616]
[1646938189735,0.00364267,2604.6,2604.4,0.00048616]
[1646938190637,0.1359259,2604.7,2604.4,0.00048616]
[1646938190838,0.00364267,2604.6,2604.4,0.00048616]
[1646938191785,0.1359259,2604.7,2604.4,0.00048616]
[1646938191985,0.65911657,2604.6,2604.0,2.48880623]
[1646938192187,0.05742709,2604.5,2604.0,2.48880623]
[1646938192585,1.16996976,2604.4,2604.2,0.96038]
[1646938193385,0.00347094,2604.5,2604.2,0.96038]
[1646938193887,0.00347094,2604.5,2604.2,1.92061]
[1646938194287,0.0833999,2604.7,2604.2,2.8808884]
[1646938194495,0.00347102,2604.5,2604.3,0.9602]
[1646938195344,1.07755061,2604.7,2604.3,0.9602]
[1646938195735,0.00347107,2604.5,2604.3,0.9602]
[1646938196541,0.65631339,2604.6,2604.2,2.8808556]
[1646938196747,0.00216817,2604.5,2604.3,1.04587624]
[1646938197141,0.00216817,2604.5,2604.2,2.94994231]
[1646938197342,0.00216817,2604.5,2604.2,2.8808556]
[1646938197739,0.65457724,2604.6,2604.2,2.8808556]
[1646938197941,1.07755061,2604.7,2604.2,2.8808556]
[1646938198142,0.00216813,2604.5,2604.2,2.8808556]
[1646938198541,0.05796942,2604.5,2604.2,2.8808556]
[1646938198942,0.05580129,2604.5,2604.2,2.8808556]
[1646938199186,0.05796942,2604.5,2604.2,2.8808556]
[1646938200188,0.05580129,2604.5,2604.2,2.8808556]
[1646938200388,0.05944742,2604.5,2604.2,2.8808556]
[1646938201192,0.00364613,2604.5,2604.3,3.5]
[1646938201392,0.0833999,2604.7,2604.5,0.00424916]
[1646938202844,0.08704596,2604.7,2604.5,0.00424916]
[1646938203231,0.08704596,2604.7,2604.5,0.96442976]
[1646938203637,0.08704596,2604.7,2604.5,5.56815923]
[1646938203841,0.0833999,2604.7,2604.6,3.5]
[1646938204038,0.08699756,2604.7,2604.5,2.53115923]
[1646938205038,0.0833999,2604.7,2604.5,1.57097863]
[1646938205238,0.08688818,2604.7,2604.5,0.46724916]
[1646938206239,0.0833999,2604.7,2604.5,0.46724916]
[1646938206438,0.08688818,2604.7,2604.5,0.46724916]
[1646938206885,0.08688818,2604.7,2604.5,1.42739636]
[1646938207489,0.0833999,2604.7,2604.5,1.42739636]
[1646938207689,0.08689236,2604.7,2604.5,0.46724916]
[1646938208289,0.08689236,2604.7,2604.5,1.42740276]
[1646938208590,0.0833999,2604.7,2604.5,1.42740276]
[1646938208790,0.08673787,2604.7,2604.6,3.5]
[1646938208990,0.08673787,2604.7,2604.6,3.963]
[1646938209190,0.08673787,2604.7,2604.6,2.36782541]
[1646938209392,0.08673787,2604.7,2604.6,1.36782541]
[1646938209591,0.08673787,2604.7,2604.6,0.463]
[1646938209797,0.0833999,2604.7,2604.6,0.90482721]
[1646938209992,0.0833999,2604.7,2604.5,0.00424916]
[1646938211339,0.08674278,2604.7,2604.5,0.00424916]
[1646938211536,0.08006658,2604.7,2604.5,0.00424916]
[1646938212138,0.0767237,2604.7,2604.5,0.00424916]
[1646938212538,0.08008571,2604.7,2604.5,0.00424916]
[1646938213540,0.0767237,2604.7,2604.5,0.00424916]
[1646938213741,0.65626724,2604.6,2604.5,0.00424916]
[1646938214592,1.34206724,2604.6,2604.5,0.00424916]
[1646938214791,1.53599761,2604.6,2604.5,0.00424916]
[1646938214995,1.34206724,2604.6,2604.5,0.00424916]
[1646938215190,2.34206724,2604.6,2604.5,0.00424916]
[1646938215591,13.11206724,2604.6,2604.5,0.00424916]
[1646938216290,14.05904894,2604.6,2604.5,0.00424916]
[1646938216493,15.05904894,2604.6,2604.5,0.00424916]
[1646938217193,3.28904894,2604.6,2604.5,0.00424916]
[1646938217391,2.34206724,2604.6,2604.5,0.00424916]
[1646938217597,1.34206724,2604.6,2604.5,0.00424916]
[1646938218037,1.75130796,2604.6,2604.5,0.00424916]
[1646938218536,1.75130491,2604.6,2604.5,0.00424916]
[1646938218938,1.34206724,2604.6,2604.5,0.00424916]
[1646938219341,13.11206724,2604.6,2604.5,0.00424916]
[1646938219541,14.05904894,2604.6,2604.5,0.00424916]
[1646938219740,15.05904894,2604.6,2604.5,0.00424916]
[1646938220541,3.28904894,2604.6,2604.5,0.00424916]
[1646938220744,1.98904894,2604.6,2604.5,0.00424916]
[1646938220944,1.04206724,2604.6,2604.5,0.00424916]
[1646938221142,1.34206724,2604.6,2604.5,0.00424916]
[1646938223096,13.11206724,2604.6,2604.5,0.00424916]
[1646938223298,14.05904894,2604.6,2604.5,0.00424916]
[1646938223500,14.11206724,2604.6,2604.5,0.00424916]
[1646938224299,3.28788991,2604.6,2604.5,0.00424916]
[1646938224499,1.34206724,2604.6,2604.5,0.00424916]
[1646938224703,2.05136968,2604.6,2604.5,0.00424916]
[1646938224898,1.34206724,2604.6,2604.5,0.00424916]
[1646938225099,2.05136039,2604.6,2604.5,0.00424916]
[1646938225348,1.66556039,2604.6,2604.5,0.00424916]
[1646938226338,2.05136039,2604.6,2604.5,0.00424916]
[1646938226737,1.66556039,2604.6,2604.5,0.00424916]
[1646938227339,2.05136039,2604.6,2604.5,0.00424916]
[1646938227539,1.66556039,2604.6,2604.5,0.00424916]
[1646938227737,1.36556039,2604.6,2604.5,0.00424916]
[1646938228138,0.65626724,2604.6,2604.5,0.00424916]
[1646938228941,1.36556039,2604.6,2604.5,0.00424916]
[1646938229886,1.75136039,2604.6,2604.5,0.00424916]
[1646938230089,1.04206724,2604.6,2604.5,0.00424916]
[1646938230690,1.34206724,2604.6,2604.5,0.00424916]
[1646938232187,1.34206724,2604.6,2604.5,0.00310509]
[1646938232389,14.05788991,2604.6,2604.5,5.09e-06]
[1646938232591,12.1558,2604.3,2603.6,0.58990995]
[1646938232835,12.1558,2604.1,2603.6,0.58990995]
[1646938233042,12.4558,2604.1,2603.6,0.58990995]
[1646938233437,1.09508981,2604.2,2603.6,0.58990995]
[1646938233637,0.70928981,2604.4,2603.6,0.58990995]
[1646938233837,1.00928981,2604.4,2603.6,0.58990995]
[1646938234036,1.02272365,2604.4,2603.6,0.58990995]
[1646938234440,1.17423661,2604.0,2603.6,0.58990995]
[1646938234842,1.22987815,2604.0,2603.6,0.58990995]
[1646938235240,0.35564154,2604.0,2603.6,0.58990995]
[1646938235644,0.05231504,2604.2,2603.6,0.58990995]
[1646938236041,0.05231504,2604.2,2603.5,0.96054]
[1646938236242,0.05231504,2604.2,2603.7,0.96048]
[1646938236684,0.05775786,2604.4,2603.7,0.96048]
[1646938236884,0.05579995,2604.3,2603.9,1.19321425]
[1646938237286,0.05579995,2604.3,2603.9,2.15360425]
[1646938237488,0.05346648,2604.6,2603.9,2.15360425]
[1646938237687,0.0033585,2604.5,2603.9,2.15360425]
[1646938238086,0.0033585,2604.5,2604.1,0.07754932]
[1646938238292,0.0023585,2604.5,2604.1,0.07754932]
[1646938238487,0.0023585,2604.5,2604.3,0.91807526]
[1646938238685,1.2727902,2604.7,2604.3,0.91807526]
[1646938238887,0.00335867,2604.5,2603.7,0.26454464]
[1646938239087,0.05671512,2604.5,2603.7,0.07274464]
[1646938239289,0.05671512,2604.5,2603.6,0.57916057]
[1646938239290,1.15180493,2604.5,2603.6,0.57916057]
[1646938239491,0.04940258,2604.4,2603.6,0.57916057]
[1646938239893,0.90347723,2604.3,2603.8,1.05600531]
[1646938240842,0.90347723,2604.3,2603.6,0.57916057]
[1646938241037,1.61276704,2604.3,2603.6,0.57916057]
[1646938241239,0.90347723,2604.3,2603.6,0.57916057]
[1646938241440,1.20347723,2604.3,2603.6,0.57916057]
[1646938241640,0.90347723,2604.3,2603.6,0.57916057]
[1646938242041,0.90347723,2604.3,2603.9,1.18042762]
[1646938242243,0.90347723,2604.3,2603.9,0.19754046]
[1646938242843,0.90347723,2604.3,2603.7,1.92082]
[1646938243043,0.90347723,2604.3,2603.6,0.57916057]
[1646938243044,1.20347723,2604.3,2603.6,0.57916057]
[1646938243245,0.0518321,2604.2,2603.6,0.57916057]
[1646938243448,0.05579105,2604.1,2603.6,0.57916057]
[1646938244391,1.01651105,2604.1,2603.6,0.57916057]
[1646938244596,1.18112452,2603.9,2603.1,0.07475111]
[1646938244794,1.18112452,2603.9,2602.9,0.192]
[1646938244795,3.40314095,2603.8,2602.9,0.192]
[1646938244995,0.04509078,2603.7,2603.4,0.00335959]
[1646938245595,0.90980787,2603.5,2603.4,0.00335959]
[1646938245793,0.04984715,2603.3,2602.9,1.19463139]
[1646938246393,0.0461802,2603.7,2602.9,1.19463139]
[1646938246593,12.47928981,2604.0,2602.9,1.19463139]
[1646938246594,0.04931676,2603.9,2602.9,2.23242368]
[1646938246794,11.77,2604.0,2602.5,1.26204163]
[1646938246795,16.44019981,2603.8,2602.5,1.26204163]
[1646938246996,16.44019981,2603.8,2602.3,0.08614383]
[1646938246997,0.05346045,2603.3,2602.3,0.08614383]
[1646938247395,0.05346045,2603.3,2603.2,0.0033595]
[1646938247595,3.55346045,2603.3,2603.2,0.0033595]
[1646938247848,4.77948024,2603.3,2603.2,0.0033595]
[1646938248037,16.93528024,2603.3,2603.2,0.0033595]
[1646938248338,0.04832652,2603.2,2602.5,0.94767199]
[1646938248545,0.04832652,2603.2,2603.1,0.0033621]
[1646938248737,3.54832652,2603.2,2603.1,0.0033621]
[1646938248938,3.84832652,2603.2,2603.1,0.0033621]
[1646938249142,0.04832652,2603.2,2603.1,0.0033621]
[1646938249342,0.04832652,2603.2,2602.5,0.94767199]
[1646938249741,0.04523809,2603.4,2603.0,0.00336214]
[1646938250140,0.0455542,2603.3,2603.0,0.00336214]
[1646938250540,0.0455542,2603.3,2602.6,1.9217191]
[1646938251044,0.0455542,2603.3,2603.0,0.00336207]
[1646938251886,0.0455542,2603.3,2602.4,0.192]
[1646938251887,3.5455542,2603.3,2602.4,0.192]
[1646938252088,0.04573059,2603.2,2603.0,0.00335919]
[1646938252691,0.65410908,2603.1,2603.0,0.00335919]
[1646938252889,0.95410908,2603.1,2603.0,0.00335919]
[1646938253090,1.16732933,2602.9,2602.4,1.99790565]
[1646938253288,1.46732933,2602.9,2602.5,0.90950851]
[1646938254495,0.3,2602.9,2602.6,0.0033595]
[1646938254994,4.54573059,2603.2,2602.6,0.0033595]
[1646938254995,4.84573059,2603.2,2602.6,0.0033595]
[1646938255195,0.65382937,2603.1,2602.6,0.0033595]
[1646938255438,0.96116,2602.9,2602.5,0.90950851]
[1646938255639,0.96116,2602.9,2602.6,0.00335991]
[1646938255842,4.95810653,2603.0,2602.6,0.00335991]
[1646938256039,1.45810653,2603.0,2602.6,0.00335991]
[1646938256640,0.96111,2603.1,2602.5,0.90950851]
[1646938256941,0.65404916,2603.0,2602.7,0.00335989]
[1646938257141,3.54573059,2603.2,2602.7,0.00335989]
[1646938257142,0.34573059,2603.2,2602.7,0.00335989]
[1646938257341,0.65402989,2603.1,2602.7,0.00335989]
[1646938257740,1.68112979,2603.1,2602.5,0.90950851]
[1646938257942,0.65402989,2603.0,2602.6,0.96093]
[1646938258141,0.65402989,2603.0,2602.8,0.00335983]
[1646938259195,0.95402989,2603.0,2602.8,0.00335983]
[1646938259396,5.46102,2603.3,2602.8,0.00335983]
[1646938259596,0.65430234,2603.2,2602.8,0.00335983]
[1646938260197,0.65430234,2603.2,2602.7,0.90942446]
[1646938260396,0.65430234,2603.2,2602.9,0.9910472]
[1646938260599,1.1521,2603.6,2603.0,0.9093923]
[1646938260798,0.05540454,2603.7,2603.0,0.9093923]
[1646938260799,0.65411687,2603.5,2603.0,0.9093923]
[1646938260995,0.05540454,2603.7,2603.0,0.9093923]
[1646938260996,0.65411687,2603.4,2603.0,0.9093923]
[1646938261196,0.05540454,2603.7,2603.0,0.9093923]
[1646938261400,0.65407844,2603.6,2603.0,0.9093923]
[1646938261796,0.65407844,2603.6,2603.1,0.00335962]
[1646938261996,1.56406349,2603.6,2603.1,0.00335962]
[1646938262196,0.65407844,2603.5,2603.1,0.00335962]
[1646938262596,0.65407844,2603.5,2603.0,0.9093923]
[1646938262848,0.65407844,2603.5,2603.2,0.00335958]
[1646938263841,0.65407844,2603.5,2603.0,0.9608]
[1646938264043,0.65407844,2603.5,2603.2,0.00335956]
[1646938264847,0.65407844,2603.4,2603.2,0.00335956]
[1646938265046,1.46087,2603.8,2603.1,0.07859244]
[1646938265346,0.65408348,2603.7,2603.2,0.91249698]
[1646938265846,0.65408348,2603.7,2603.3,0.86961752]
[1646938266248,0.78875748,2603.7,2603.3,1.83031752]
[1646938266448,0.5,2603.8,2603.4,0.98215836]
[1646938266696,0.5,2603.8,2603.4,0.07310158]
[1646938267091,0.5,2603.8,2603.5,0.90940468]
[1646938267289,0.5,2603.8,2603.5,0.98486669]
[1646938267489,0.5,2603.8,2603.5,0.07546201]
[1646938267990,0.65411002,2603.7,2603.4,0.00119197]
[1646938268592,0.65411002,2603.7,2603.2,0.90978448]
[1646938268991,0.65646882,2603.7,2603.4,0.00366784]
[1646938269597,1.5925834,2603.7,2603.4,0.00366784]
[1646938269797,1.5925834,2603.7,2603.2,0.90978448]
[1646938269798,0.98203997,2603.7,2603.2,0.90978448]
[1646938269996,0.00305302,2603.3,2602.8,0.07600463]
[1646938270849,0.00305302,2603.3,2602.9,1.19425054]
[1646938271047,0.00305302,2603.3,2602.9,2.15508054]
[1646938271248,0.00305302,2603.3,2602.9,2.1587383]
[1646938272049,0.00305302,2603.3,2603.0,3.58235456]
[1646938272349,0.00305302,2603.3,2603.0,1.04308456]
[1646938272552,0.00305302,2603.3,2603.0,1.04674229]
[1646938273350,0.00305302,2603.3,2603.0,2.00743789]
[1646938273551,0.00305302,2603.3,2603.0,2.00378016]
[1646938273750,0.00305302,2603.3,2603.0,2.00743787]
[1646938273950,0.00305302,2603.3,2603.0,0.96438771]
[1646938274596,0.00305302,2603.3,2603.0,0.96073]
[1646938274999,0.00305302,2603.3,2603.0,0.96438923]
[1646938275799,0.00305302,2603.3,2603.0,0.96073]
[1646938276199,0.00305302,2603.3,2603.0,0.96438923]
[1646938276802,0.00305302,2603.3,2603.0,0.00365923]
[1646938277005,0.00305302,2603.3,2602.9,1.19425054]
[1646938277203,0.00305302,2603.3,2602.5,5.2604]
[1646938277404,0.00305302,2603.3,2603.0,0.00365923]
[1646938277405,0.04812371,2603.2,2603.0,0.00365923]
[1646938278241,0.88188531,2603.1,2602.5,1.07604087]
[1646938278441,0.04667627,2603.0,2602.2,0.2766794]
[1646938278642,0.96115,2602.9,2602.2,0.2766794]
[1646938279346,0.96115,2602.9,2602.3,1.05172582]
[1646938279552,0.05399403,2602.7,2602.2,0.19361517]
[1646938279749,1.01521403,2602.7,2602.4,0.00118665]
[1646938280748,1.2333496,2602.5,2601.9,0.99394615]
[1646938280945,1.01521403,2602.7,2602.4,0.00366361]
[1646938281794,1.01521403,2602.7,2601.9,0.99394615]
[1646938282019,1.10466612,2602.7,2601.9,0.99394615]
[1646938282204,0.05399403,2602.7,2602.4,0.00374711]
[1646938282401,0.5,2602.5,2602.4,0.00374711]
[1646938283000,0.5,2602.5,2602.0,0.07564559]
[1646938283402,0.5,2602.5,2602.3,1.14117397]
[1646938284302,0.5,2602.5,2602.3,1.13742681]
[1646938284502,0.5,2602.5,2602.3,1.14117399]
[1646938284708,0.05399403,2602.7,2602.3,1.14117399]
[1646938285540,0.05399403,2602.7,2602.3,1.13742681]
[1646938285740,0.05399403,2602.7,2602.4,0.00365133]
[1646938286742,0.05399403,2602.7,2602.3,1.13742681]
[1646938286943,0.05399403,2602.7,2602.4,0.0036513]
[1646938287948,1.01522403,2602.7,2602.0,0.07564559]
[1646938288144,1.01522403,2602.7,2602.4,0.0036513]
[1646938289212,1.01522403,2602.7,2601.8,8.01999194]
[1646938289213,0.00108363,2602.4,2602.3,0.91547294]
[1646938289610,0.00108363,2602.4,2601.9,0.91547294]
[1646938290212,0.00108363,2602.4,2602.2,1.20155244]
[1646938290412,0.00108363,2602.4,2602.3,0.91547294]
[1646938291010,0.65518404,2602.4,2602.3,0.91547294]
[1646938291812,0.65518404,2602.4,2601.8,8.29121]
[1646938291813,0.65518404,2602.4,2602.2,0.0036654]
[1646938292215,0.00108363,2602.4,2602.3,1.12862258]